fUSD/lending_fUSD_20251017
["ID","MTS","AMOUNT","RATE_DAILY","PERIOD"]
[391694426,1760731833176,-1364.1178105,0.0003217,30]
[391694427,1760731833186,-150.0,0.00032178,2]
[391694428,1760731833197,-200.0,0.000322,120]
[391694429,1760731833207,-1000.0,0.00032583,2]
[391694430,1760731833218,-150.0,0.00032651,30]
[391694431,1760731833227,-617.72074206,0.00032651,30]
[391694432,1760731833237,-150.0,0.00032651,30]
[391694433,1760731833247,-663.02013832,0.00032651,30]
[391694434,1760731833257,-150.0,0.00032651,30]
[391694435,1760731833268,-3182.14756887,0.00032651,30]
[391694436,1760731833279,-152.0,0.000327,120]
[391694437,1760731833290,-500.0,0.000327,5]
[391694438,1760731833301,-1000.0,0.00032776,2]
[391694439,1760731833311,-3000.0075,0.00032876,4]
[391694440,1760731833322,-171.07803812,0.00032877,2]
[391694441,1760731833333,-208.97,0.000344,60]
[391694442,1760731833344,-152.0,0.000344,120]
[391694443,1760731833354,-153.0,0.00034411,2]
[391694444,1760731833365,-153.0,0.00034411,2]
[391694445,1760731833375,-153.0,0.00034411,2]
[391694446,1760731833385,-153.0,0.00034411,2]
[391694447,1760731833395,-153.0,0.00034411,2]
[391694448,1760731833406,-153.0,0.00034411,2]
[391694449,1760731833417,-500.0,0.00034823,10]
[391694450,1760731833427,-1599.0,0.00034837,20]
[391694451,1760731833438,-400.91161401,0.00034849,120]
[391694452,1760731833449,-500.0,0.00035097,10]
[391694453,1760731833460,-1599.0,0.00035196,20]
[391694454,1760731833471,-500.0,0.00035371,10]
[391694455,1760731833481,-1599.0,0.00035555,20]
[391694456,1760731833491,-4000.01,0.00035616,5]
[391694457,1760731833502,-500.0,0.00035645,10]
[391694458,1760731833512,-1599.0,0.00035914,20]
[391694459,1760731833522,-673.07059912,0.00035914,20]
[391694460,1760731833533,-500.0,0.00035919,10]
[391694461,1760731833543,-2587.0,0.00036,2]
[391694462,1760731833554,-152.0,0.000361,120]
[391694463,1760731833565,-721.82780825,0.00036161,2]
[391694464,1760731833575,-500.0,0.00036193,10]
[391694465,1760731833586,-1000.0,0.00036203,2]
[391694466,1760731833596,-7722.05,0.00036261,2]
[391694467,1760731833606,-444.98,0.00036261,30]
[391694468,1760731833616,-1599.0,0.00036274,20]
[391694469,1760731833625,-500.0,0.00036467,10]
[391694470,1760731833634,-816.0,0.00036531,2]
[391694471,1760731833643,-1599.0,0.00036633,20]
[391694472,1760731833653,-3356.0,0.00036694,2]
[391694473,1760731833662,-6445.0,0.00036694,2]
[391694474,1760731833671,-3076.0,0.00036694,2]
[391694475,1760731833681,-500.0,0.00036741,10]
[391694476,1760731833690,-1599.0,0.00036992,20]
[391694477,1760731833700,-1000.0,0.00037,2]
[391694478,1760731833709,-1000.0,0.00037,2]
[391694479,1760731833718,-500.0,0.00037015,10]
[391694480,1760731833727,-721.82780824,0.00037188,2]
[391694481,1760731833737,-500.0,0.00037289,10]
[391694482,1760731833747,-2470.9849,0.00037462,2]
[391694483,1760731833757,-158.11996447,0.00037473,15]
[391694484,1760731833767,-980.5,0.00037552,2]
[391694485,1760731833777,-980.5,0.00037552,2]
[391694486,1760731833787,-83399.0042438,0.00037562,3]
[391694487,1760731833797,-980.5,0.00037562,2]
[391694488,1760731833807,-980.5,0.00037562,2]
[391694489,1760731833817,-980.5,0.00037562,2]
[391694490,1760731833827,-500.0,0.00037563,10]
[391694491,1760731833837,-1000.0,0.0003757,2]
[391694492,1760731833847,-1000.0,0.00037571,2]
[391694493,1760731833857,-4567.0,0.00037572,5]
[391694494,1760731833866,-24870.77257174,0.00037572,2]
[391694496,1760731837909,-150.0,0.00033377,3]
[391694497,1760731837919,-300.0,0.00035617,3]
[391694498,1760731837929,-29418.98352078,0.00037572,2]
[391694499,1760731838019,-4334.52092005,0.00037572,2]
[391694500,1760731838079,-15379.80987876,0.00037572,2]
[391694501,1760731838092,-1038.82018989,0.00037572,2]
[391694502,1760731838105,-34624.9353037,0.00037572,2]
[391694503,1760731838116,-70558.322765,0.00037572,2]
[391694504,1760731838138,-2319.42075012,0.00037572,2]
[391694505,1760731838149,-1850.9311271,0.00037572,2]
[391694506,1760731838161,-780.00000001,0.00037572,2]
[391694507,1760731838172,-3058.02622672,0.00037572,2]
[391694508,1760731838184,-680.43528454,0.00037572,2]
[391694509,1760731838200,-401.748,0.00037572,2]
[391694510,1760731838258,-150.0,0.00033877,3]
[391694511,1760731838269,-3274.46726159,0.00037572,2]
[391694512,1760731838279,-500.0,0.00037573,5]
[391694513,1760731838290,-500.0,0.00037579,15]
[391694514,1760731838300,-500.0,0.00037579,15]
[391694515,1760731838310,-500.0,0.00037579,15]
[391694516,1760731838319,-500.0,0.00037579,15]
[391694517,1760731838329,-500.0,0.00037579,15]
[391694518,1760731838339,-500.0,0.00037579,15]
[391694519,1760731838348,-500.0,0.00037579,15]
[391694520,1760731838358,-500.0,0.00037579,15]
[391694521,1760731838368,-500.0,0.00037579,15]
[391694522,1760731838378,-500.0,0.00037579,15]
[391694523,1760731838387,-500.0,0.00037579,15]
[391694524,1760731838396,-500.0,0.00037579,15]
[391694525,1760731838407,-500.0,0.00037579,15]
[391694526,1760731838417,-500.0,0.00037579,15]
[391694528,1760731838427,-500.0,0.00037579,15]
[391694530,1760731838437,-351.26138464,0.00037579,15]
[391694532,1760731838449,-148.73861536,0.00037579,15]
[391694534,1760731838458,-500.0,0.00037579,15]
[391694536,1760731838467,-500.0,0.00037579,15]
[391694538,1760731838477,-500.0,0.00037579,15]
[391694540,1760731838486,-500.0,0.00037579,15]
[391694542,1760731838495,-376.20138495,0.00037579,15]
[391694548,1760731839916,-582.07114043,0.00036694,2]
[391694549,1760731839972,-489.35362707,0.00036694,2]
[391694550,1760731839983,-111.5752325,0.00036694,2]
[391694551,1760731839993,-123.79861505,0.00037579,15]
[391694552,1760731840002,-232.95845359,0.00037579,15]
[391694553,1760731840015,-267.04154641,0.00037579,15]
[391694554,1760731840024,-500.0,0.00037579,15]
[391694555,1760731840034,-18.24586214,0.00037579,15]
[391694556,1760731840049,-477.80224249,0.00037579,15]
[391694557,1760731840064,-3.95189537,0.00037579,15]
[391694558,1760731840073,-500.0,0.00037579,15]
[391694559,1760731840083,-500.0,0.00037579,15]
[391694560,1760731840092,-500.0,0.00037579,15]
[391694561,1760731840103,-244.9758573,0.00037579,15]
[391694562,1760731840112,-500.0,0.00037579,15]
[391694563,1760731840121,-500.0,0.00037579,15]
[391694564,1760731840132,-500.0,0.00037579,15]
[391694565,1760731840142,-500.0,0.00037579,15]
[391694566,1760731840151,-500.0,0.00037579,15]
[391694567,1760731840160,-500.0,0.00037579,15]
[391694568,1760731840170,-500.0,0.00037579,15]
[391694570,1760731840179,-500.0,0.00037579,15]
[391694571,1760731840189,-500.0,0.00037579,15]
[391694572,1760731840198,-500.0,0.00037579,15]
[391694573,1760731840207,-500.0,0.00037579,15]
[391694574,1760731840216,-500.0,0.00037579,15]
[391694575,1760731840225,-200.0,0.00037579,15]
[391694576,1760731840234,-500.0,0.00037579,15]
[391694577,1760731840244,-500.0,0.00037579,15]
[391694578,1760731840253,-500.0,0.00037579,15]
[391694579,1760731840262,-500.0,0.00037579,15]
[391694580,1760731840271,-152.0,0.00037635,3]
[391694581,1760731840280,-1389.93,0.00037648,2]
[391694582,1760731840290,-474.79,0.00037648,2]
[391694583,1760731840299,-474.79,0.00037648,2]
[391694584,1760731840308,-474.79,0.00037648,2]
[391694586,1760731840318,-474.79,0.00037648,2]
[391694588,1760731840327,-474.79,0.00037648,2]
[391694590,1760731840336,-211.09,0.00037648,2]
[391694592,1760731840345,-1000.0,0.0003766,2]
[391694594,1760731840355,-16679.8008488,0.00037662,3]
[391694596,1760731840364,-749.0,0.00037672,2]
[391694598,1760731840373,-1267.0,0.00037672,2]
[391694599,1760731840381,-3408.0,0.00037672,2]
[391694600,1760731840390,-964.78594528,0.00037672,2]
[391694601,1760731840401,-1085.21405472,0.00037672,2]
[391694602,1760731840410,-1310.0,0.00037672,2]
[391694603,1760731840419,-571.0,0.00037672,2]
[391694604,1760731840428,-1589.0,0.00037672,2]
[391694605,1760731840437,-605.0,0.00037672,2]
[391694606,1760731840445,-152.0,0.000378,120]
[391694607,1760731840454,-500.0,0.00037837,10]
[391694608,1760731840463,-500.0,0.00038111,10]
[391694609,1760731840473,-721.82780824,0.00038214,2]
[391694610,1760731840482,-5000.0,0.00038332,2]
[391694611,1760731840491,-5000.0,0.00038334,2]
[391694612,1760731840500,-1000.0,0.00038355,2]
[391694613,1760731840509,-500.0,0.00038356,120]
[391694614,1760731840518,-5000.0125,0.00038356,6]
[391694615,1760731840528,-500.0,0.00038385,10]
[391694616,1760731840537,-1203.06886941,0.00038422,3]
[391694617,1760731840552,-2705.9,0.00038422,3]
[391694618,1760731840563,-12770.83197939,0.00038422,3]
[391694619,1760731840572,-500.0,0.0003863,2]
[391694620,1760731840581,-330.31681985,0.00038659,10]
[391694621,1760731840592,-169.68318015,0.00038659,10]
[391694622,1760731840602,-150.99,0.00038678,2]
[391694623,1760731840611,-218.95681985,0.00038678,2]
[391694624,1760731840625,-781.03318015,0.00038678,2]
[391694625,1760731840634,-138.67976327,0.00038678,30]
[391694626,1760731840645,-12.31023673,0.00038678,30]
[391694627,1760731840654,-299.99,0.00038678,120]
[391694628,1760731840663,-353.69976327,0.00038933,10]
[391694629,1760731840674,-146.30023673,0.00038933,10]
[391694630,1760731840683,-158.11996444,0.00038963,15]
[391694631,1760731840692,-275.86685538,0.00039,2]
[391694632,1760731840703,-1017.13314462,0.00039,2]
[391694633,1760731840712,-500.0,0.00039207,10]
[391694634,1760731840722,-721.82780824,0.00039241,2]
[391694635,1760731840733,-152.0,0.000395,120]
[391694636,1760731840743,-10164.7239217,0.00039501,3]
[391694637,1760731840752,-16679.8008488,0.00039511,3]
[391694638,1760731840761,-816.0,0.00039531,2]
[391694639,1760731840770,-3356.0,0.00039694,2]
[391694640,1760731840780,-1183.0,0.00039694,2]
[391694641,1760731840789,-500.0,0.00039726,120]
[391694642,1760731840798,-1000.0,0.00039824,2]
[391694643,1760731840807,-721.82780824,0.00040267,15]
[391694644,1760731840818,-10164.7239217,0.00040395,3]
[391694645,1760731840827,-16679.8008488,0.00040406,3]
[391694646,1760731840836,-10164.7239217,0.00040406,3]
[391694647,1760731840845,-16679.8008488,0.00040415,3]
[391694648,1760731840855,-158.11996444,0.00040452,15]
[391694649,1760731840864,-10164.7239217,0.00040662,3]
[391694650,1760731840873,-749.0,0.00040672,2]
[391694651,1760731840882,-1267.0,0.00040672,2]
[391694652,1760731840892,-3408.0,0.00040672,2]
[391694653,1760731840901,-2050.0,0.00040672,2]
[391694654,1760731840910,-1310.0,0.00040672,2]
[391694655,1760731840919,-571.0,0.00040672,2]
[391694656,1760731841088,-1589.0,0.00040672,2]
[391694657,1760731841099,-605.0,0.00040672,2]
[391694658,1760731841108,-1000.0,0.00040899,30]
[391694659,1760731841117,-191.76523301,0.000409,120]
[391694660,1760731841127,-169.0,0.00041,90]
[391694661,1760731841136,-1295.0,0.00041,10]
[391694662,1760731841146,-16679.8008488,0.00041085,3]
[391694663,1760731841155,-10164.7239217,0.00041085,3]
[391694664,1760731841164,-500.0,0.00041095,120]
[391694665,1760731841174,-6000.015,0.00041095,7]
[391694666,1760731841183,-709.84424556,0.00041177,120]
[391694667,1760731841192,-152.0,0.000412,120]
[391694668,1760731841202,-721.82780824,0.00041294,15]
[391694669,1760731841211,-150.0,0.00041844,30]
[391694670,1760731841220,-150.0,0.00041844,30]
[391694671,1760731841229,-150.0,0.00041844,30]
[391694672,1760731841238,-150.0,0.00041844,30]
[391694673,1760731841247,-150.0,0.00041844,30]
[391694674,1760731841257,-150.0,0.00041844,30]
[391694675,1760731841271,-150.0,0.00041844,30]
[391694676,1760731841281,-150.0,0.00041844,30]
[391694677,1760731841291,-233.00361513,0.00041844,30]
[391694678,1760731841300,-150.0,0.00041844,30]
[391694679,1760731841309,-150.0,0.00041844,30]
[391694680,1760731841319,-150.0,0.00041844,30]
[391694681,1760731841328,-150.0,0.00041844,30]
[391694682,1760731841338,-150.0,0.00041844,30]
[391694683,1760731841347,-150.0,0.00041844,30]
[391694684,1760731841357,-150.0,0.00041844,30]
[391694685,1760731841367,-161.90960499,0.00041844,30]
[391694686,1760731841376,-233.00361513,0.00041891,30]
[391694687,1760731841385,-150.0,0.00041904,30]
[391694688,1760731841395,-150.0,0.00041923,30]
[391694689,1760731841405,-233.00361513,0.00041938,30]
[391694690,1760731841414,-158.11996444,0.00041942,15]
[391694691,1760731841423,-150.0,0.00041943,30]
[391694692,1760731841432,-150.0,0.00041965,30]
[391694693,1760731841441,-150.0,0.00041966,30]
[391694694,1760731841451,-10164.7239217,0.0004197,3]
[391694695,1760731841460,-150.0,0.00041973,30]
[391694696,1760731841469,-16679.8008488,0.0004198,3]
[391694697,1760731841478,-233.00361513,0.00041985,30]
[391694698,1760731841488,-218.89,0.00042,30]
[391694699,1760731841497,-150.0,0.00042,53]
[391694700,1760731841507,-150.0,0.00042001,30]
[391694701,1760731841516,-150.0,0.00042004,30]
[391694702,1760731841526,-150.0,0.00042025,30]
[391694703,1760731841542,-233.00361513,0.00042032,30]
[391694704,1760731841551,-150.0,0.00042042,30]
[391694705,1760731841561,-233.00361513,0.00042079,30]
[391694706,1760731841570,-150.0,0.0004208,30]
[391694707,1760731841579,-150.0,0.00042085,30]
[391694708,1760731841589,-150.0,0.00042089,30]
[391694709,1760731841598,-150.0,0.00042089,30]
[391694710,1760731841607,-150.0,0.00042102,30]
[391694711,1760731841617,-233.00361513,0.00042126,30]
[391694712,1760731841626,-150.0,0.00042141,30]
[391694713,1760731841635,-150.0,0.00042146,30]
[391694714,1760731841645,-150.0,0.00042154,30]
[391694715,1760731841655,-10164.7239217,0.00042154,3]
[391694716,1760731841664,-150.0,0.00042159,30]
[391694717,1760731841673,-150.0,0.00042164,30]
[391694718,1760731841683,-233.00361513,0.00042173,30]
[391694720,1760731841692,-150.0,0.00042206,30]
[391694721,1760731841702,-150.0,0.00042211,30]
[391694722,1760731841711,-233.00361513,0.0004222,30]
[391694723,1760731841720,-150.0,0.00042231,30]
[391694724,1760731841729,-150.0,0.00042231,30]
[391694725,1760731841739,-150.0,0.00042238,30]
[391694726,1760731841748,-150.0,0.0004224,30]
[391694727,1760731841758,-150.0,0.00042267,30]
[391694728,1760731841768,-233.00361513,0.00042267,30]
[391694729,1760731841781,-150.0,0.00042267,30]
[391694730,1760731841790,-233.00361513,0.00042313,30]
[391694731,1760731841800,-150.0,0.00042317,30]
[391694732,1760731841810,-721.82780824,0.0004232,15]
[391694733,1760731841819,-150.0,0.00042325,30]
[391694734,1760731841828,-150.0,0.00042327,30]
[391694735,1760731841838,-150.0,0.00042333,30]
[391694736,1760731841847,-150.0,0.00042333,30]
[391694737,1760731841857,-150.0,0.00042338,30]
[391694738,1760731841867,-233.00361513,0.0004236,30]
[391694739,1760731841877,-150.0,0.0004236,30]
[391694740,1760731841886,-150.0,0.00042387,30]
[391694741,1760731841896,-150.0,0.00042395,30]
[391694742,1760731841905,-233.00361513,0.00042407,30]
[391694743,1760731841914,-150.0,0.00042437,30]
[391694744,1760731841924,-150.0,0.00042448,30]
[391694745,1760731841933,-233.00361513,0.00042454,30]
[391694746,1760731841943,-150.0,0.00042456,30]
[391694747,1760731841953,-150.0,0.00042464,30]
[391694748,1760731841962,-327.3455537,0.00042465,120]
[391694749,1760731841971,-150.0,0.00042474,30]
[391694750,1760731841981,-150.0,0.00042485,30]
[391694751,1760731841991,-150.0,0.0004249,30]
[391694752,1760731842000,-233.00361513,0.00042501,30]
[391694753,1760731842010,-150.0,0.00042508,30]
[391694754,1760731842019,-150.0,0.00042508,30]
[391694755,1760731842030,-816.0,0.00042531,2]
[391694756,1760731842040,-150.0,0.00042536,30]
[391694757,1760731842050,-233.00361513,0.00042548,30]
[391694758,1760731842063,-150.0,0.00042553,30]
[391694759,1760731842073,-150.0,0.00042568,30]
[391694760,1760731842082,-150.0,0.00042578,30]
[391694761,1760731842093,-150.0,0.00042578,30]
[391694762,1760731842103,-233.00361513,0.00042595,30]
[391694763,1760731842113,-150.0,0.00042619,30]
[391694764,1760731842122,-150.0,0.00042619,30]
[391694765,1760731842131,-150.0,0.00042629,30]
[391694766,1760731842142,-150.0,0.00042632,30]
[391694767,1760731842151,-150.0,0.00042635,30]
[391694768,1760731842161,-233.00361513,0.00042642,30]
[391694769,1760731842170,-150.0,0.00042645,30]
[391694770,1760731842179,-150.0,0.00042689,30]
[391694771,1760731842189,-233.00361513,0.00042689,30]
[391694772,1760731842198,-150.0,0.00042689,30]
[391694773,1760731842207,-3356.0,0.00042694,2]
[391694774,1760731842216,-1183.0,0.00042694,2]
[391694775,1760731842225,-150.0,0.000427,30]
[391694776,1760731842235,-10164.7239217,0.00042706,3]
[391694777,1760731842245,-150.0,0.00042711,30]
[391694778,1760731842255,-16679.8008488,0.00042716,3]
[391694779,1760731842264,-150.0,0.00042734,30]
[391694780,1760731842274,-233.00361513,0.00042736,30]
[391694781,1760731842288,-2000.0,0.00042746,120]
[391694782,1760731842297,-150.0,0.00042748,30]
[391694783,1760731842307,-150.0,0.0004275,30]
[391694784,1760731842316,-150.0,0.00042774,30]
[391694785,1760731842326,-233.00361513,0.00042783,30]
[391694786,1760731842336,-150.0,0.00042789,30]
[391694787,1760731842345,-150.0,0.00042806,30]
[391694788,1760731842355,-150.0,0.0004281,30]
[391694789,1760731842364,-150.0,0.00042823,30]
[391694790,1760731842373,-150.0,0.00042823,30]
[391694791,1760731842383,-233.00361513,0.0004283,30]
[391694792,1760731842392,-150.0,0.00042833,30]
[391694793,1760731842401,-150.0,0.00042868,30]
[391694794,1760731842411,-150.0,0.0004287,30]
[391694795,1760731842421,-233.00361513,0.00042877,30]
[391694796,1760731842430,-150.0,0.00042877,30]
[391694797,1760731842440,-152.0,0.000429,120]
[391694798,1760731842450,-10164.7239217,0.00042916,3]
[391694799,1760731842460,-233.00361513,0.00042924,30]
[391694800,1760731842469,-150.0,0.00042931,30]
[391694801,1760731842478,-150.0,0.00042932,30]
[391694802,1760731842488,-150.0,0.00042945,30]
[391694803,1760731842498,-150.0,0.00042947,30]
[391694804,1760731842509,-150.0,0.00042966,30]
[391694805,1760731842519,-233.00361513,0.00042971,30]
[391694806,1760731842530,-150.0,0.00042991,30]
[391694807,1760731842547,-534.0,0.00043,2]
[391694808,1760731842556,-150.0,0.00043006,30]
[391694809,1760731842565,-150.0,0.00043006,30]
[391694810,1760731842575,-233.00361513,0.00043018,30]
[391694811,1760731842584,-150.0,0.00043026,30]
[391694812,1760731842593,-150.0,0.00043031,30]
[391694813,1760731842602,-150.0,0.00043051,30]
[391694814,1760731842612,-233.00361513,0.00043065,30]
[391694815,1760731842621,-150.0,0.00043067,30]
[391694816,1760731842630,-150.0,0.00043067,30]
[391694817,1760731842640,-150.0,0.00043084,30]
[391694818,1760731842649,-150.0,0.00043105,30]
[391694819,1760731842658,-150.0,0.00043112,30]
[391694820,1760731842667,-233.00361513,0.00043112,30]
[391694821,1760731842677,-150.0,0.00043112,30]
[391694822,1760731842686,-150.0,0.00043126,30]
[391694823,1760731842695,-150.0,0.0004313,30]
[391694824,1760731842704,-150.0,0.00043135,30]
[391694825,1760731842713,-233.00361513,0.00043159,30]
[391694826,1760731842723,-150.0,0.00043172,30]
[391694828,1760731842732,-150.0,0.00043172,30]
[391694830,1760731842741,-150.0,0.00043183,30]
[391694831,1760731842751,-200.0,0.00043187,120]
[391694832,1760731842760,-150.0,0.0004319,30]
[391694833,1760731842770,-174.14,0.000432,90]
[391694834,1760731842779,-233.00361513,0.00043206,30]
[391694835,1760731842789,-150.0,0.00043229,30]
[391694836,1760731842798,-150.0,0.00043233,30]
[391694837,1760731842807,-233.00361513,0.00043253,30]
[391694838,1760731842816,-10164.7239217,0.00043254,3]
[391694839,1760731842826,-150.0,0.00043262,30]
[391694840,1760731842835,-16679.8008488,0.00043263,3]
[391694841,1760731842844,-150.0,0.00043264,30]
[391694842,1760731842853,-150.0,0.00043287,30]
[391694843,1760731842863,-150.0,0.00043293,30]
[391694844,1760731842875,-233.00361513,0.000433,30]
[391694845,1760731842885,-150.0,0.00043312,30]
[391694846,1760731842895,-150.0,0.00043312,30]
[391694847,1760731842905,-150.0,0.00043328,30]
[391694849,1760731842914,-150.0,0.00043341,30]
[391694850,1760731842923,-233.00361513,0.00043347,30]
[391694852,1760731842933,-721.82780824,0.00043347,15]
[391694853,1760731842942,-150.0,0.00043353,30]
[391694854,1760731842952,-150.0,0.00043394,30]
[391694855,1760731842961,-233.00361513,0.00043394,30]
[391694856,1760731842970,-150.0,0.00043394,30]
[391694857,1760731842979,-150.0,0.00043394,30]
[391694858,1760731842989,-150.0,0.00043394,30]
[391694859,1760731842999,-150.0,0.00043414,30]
[391694860,1760731843008,-150.0,0.0004342,30]
[391694861,1760731843017,-150.0,0.00043427,30]
[391694862,1760731843027,-158.11996444,0.00043431,15]
[391694863,1760731843036,-150.0,0.00043434,30]
[391694864,1760731843046,-233.00361513,0.00043441,30]
[391694865,1760731843058,-1000.0,0.00043444,2]
[391694866,1760731843068,-150.0,0.00043447,30]
[391694867,1760731843077,-150.0,0.00043474,30]
[391694868,1760731843086,-233.00361513,0.00043488,30]
[391694869,1760731843096,-150.0,0.00043499,30]
[391694870,1760731843106,-150.0,0.00043523,30]
[391694871,1760731843115,-150.0,0.00043526,30]
[391694872,1760731843124,-150.0,0.00043534,30]
[391694873,1760731843136,-233.00361513,0.00043534,30]
[391694874,1760731843145,-150.0,0.00043534,30]
[391694875,1760731843155,-150.0,0.00043557,30]
[391694876,1760731843164,-150.0,0.00043557,30]
[391694877,1760731843173,-150.0,0.00043577,30]
[391694878,1760731843182,-233.00361513,0.00043581,30]
[391694879,1760731843191,-150.0,0.00043595,30]
[391694880,1760731843200,-1000.0,0.000436,2]
[391694881,1760731843209,-1200.0,0.000436,2]
[391694882,1760731843219,-150.0,0.00043607,30]
[391694883,1760731843228,-150.0,0.00043624,30]
[391694884,1760731843237,-233.00361513,0.00043628,30]
[391694885,1760731843248,-167.53854081,0.00043635,12]
[391694886,1760731843257,-709.84424556,0.00043648,120]
[391694887,1760731843267,-150.0,0.00043652,30]
[391694888,1760731843276,-10164.7239217,0.00043652,3]
[391694889,1760731843286,-150.0,0.00043655,30]
[391694890,1760731843295,-150.0,0.00043656,30]
[391694891,1760731843304,-16679.8008488,0.00043662,3]
[391694892,1760731843314,-10164.7239217,0.00043662,3]
[391694893,1760731843323,-560.736,0.00043672,2]
[391694894,1760731843333,-1267.0,0.00043672,2]
[391694895,1760731843342,-3408.0,0.00043672,2]
[391694896,1760731843351,-2050.0,0.00043672,2]
[391694897,1760731843361,-1310.0,0.00043672,2]
[391694898,1760731843370,-571.0,0.00043672,2]
[391694900,1760731843380,-1589.0,0.00043672,2]
[391694901,1760731843389,-605.0,0.00043672,2]
[391694902,1760731843398,-233.00361513,0.00043675,30]
[391694903,1760731843407,-150.0,0.00043679,30]
[391694904,1760731843417,-301.28412313,0.00043698,118]
[391694905,1760731843426,-150.0,0.00043704,30]
[391694906,1760731843435,-10164.7239217,0.00043715,3]
[391694907,1760731843444,-150.0,0.00043716,30]
[391694908,1760731843453,-233.00361513,0.00043722,30]
[391694909,1760731843463,-150.0,0.00043723,30]
[391694910,1760731843472,-16679.8008488,0.00043725,3]
[391694911,1760731843481,-20329.4478433,0.00043725,3]
[391694912,1760731843490,-46158.0969,0.00043735,60]
[391694913,1760731843499,-150.0,0.00043735,30]
[391694914,1760731843509,-150.0,0.00043768,30]
[391694915,1760731843517,-233.00361513,0.00043769,30]
[391694916,1760731843526,-150.0,0.00043776,30]
[391694917,1760731843536,-150.0,0.00043781,30]
[391694918,1760731843545,-150.0,0.00043781,30]
[391694919,1760731843554,-10164.7239217,0.00043795,3]
[391694920,1760731843564,-150.0,0.00043801,30]
[391694921,1760731843573,-150.0,0.00043801,30]
[391694922,1760731843582,-16679.8008488,0.00043805,3]
[391694923,1760731843591,-20329.4478433,0.00043805,3]
[391694924,1760731843600,-151.0,0.00043812,120]
[391694925,1760731843609,-150.0,0.00043814,30]
[391694926,1760731843618,-50039.4025463,0.00043815,3]
[391694927,1760731843627,-30494.171765,0.00043815,3]
[391694928,1760731843637,-233.00361513,0.00043816,30]
[391694929,1760731843646,-150.0,0.00043822,30]
[391694930,1760731843655,-50039.4025463,0.00043825,3]
[391694931,1760731843664,-50823.6196083,0.00043825,3]
[391694932,1760731843673,-500.0,0.00043835,60]
[391694933,1760731843682,-500.0,0.00043835,120]
[391694934,1760731843691,-500.0,0.00043835,120]
[391694935,1760731843700,-400.0,0.00043835,120]
[391694936,1760731843710,-400.0,0.00043835,120]
[391694937,1760731843719,-2000.0,0.00043835,7]
[391694938,1760731843727,-500.0,0.00043835,120]
[391694939,1760731843737,-500.0,0.00043835,120]
[391694940,1760731843746,-500.0,0.00043835,120]
[391694941,1760731843755,-500.0,0.00043835,120]
[391694942,1760731843764,-500.0,0.00043835,120]
[391694943,1760731843774,-500.0,0.00043835,120]
[391694944,1760731843784,-500.0,0.00043835,120]
[391694945,1760731843793,-500.0,0.00043835,2]
[391694946,1760731843803,-500.0,0.00043835,120]
[391694947,1760731843812,-500.0,0.00043835,120]
[391694948,1760731843821,-500.67264907,0.00043835,120]
[391694949,1760731843830,-500.0,0.00043835,120]
[391694950,1760731843840,-500.0,0.00043835,120]
[391694951,1760731843849,-500.0,0.00043835,2]
[391694952,1760731843858,-500.0,0.00043835,120]
[391694953,1760731843868,-151.0,0.00043835,120]